bitfinex-derivatives/quotes_BTCF0:USTF0_20250827
["timestamp","ask_amount","ask_price","bid_price","bid_amount"]
[1756261715642,1.43045766,111430.0,111420.0,0.86585057]
[1756261716046,1.43045766,111430.0,111420.0,0.7536]
[1756261719541,1.43045766,111430.0,111420.0,0.8433348]
[1756261722147,1.43045766,111430.0,111420.0,0.44614]
[1756261722351,1.68202005,111430.0,111420.0,0.0281]
[1756261722755,1.68202005,111430.0,111420.0,0.04351]
[1756261722953,1.68202005,111430.0,111420.0,0.06551]
[1756261723147,1.68202005,111430.0,111420.0,0.09836]
[1756261723341,1.68202005,111430.0,111420.0,0.14192]
[1756261725355,1.68202005,111430.0,111420.0,0.1178]
[1756261725654,1.19524919,111430.0,111420.0,0.25417057]
[1756261725952,1.68202005,111430.0,111420.0,0.19720057]
[1756261726148,1.68202005,111430.0,111420.0,0.25417057]
[1756261727350,1.68202005,111430.0,111420.0,0.23005057]
[1756261727553,1.68202005,111430.0,111420.0,0.19720057]
[1756261729951,1.68202005,111430.0,111410.0,0.02861]
[1756261729952,0.0897348,111420.0,111410.0,0.02861]
[1756261730155,0.0897429,111410.0,111400.0,0.00487559]
[1756261730455,1.78895376,111410.0,111400.0,0.02861]
[1756261731341,1.78895376,111410.0,111390.0,0.3608]
[1756261731547,1.06329262,111400.0,111390.0,0.02861]
[1756261731746,1.49688226,111400.0,111390.0,0.02861]
[1756261732150,1.49588226,111400.0,111390.0,0.02861]
[1756261732848,0.089759,111390.0,111380.0,0.40753504]
[1756261733148,1.42876986,111390.0,111380.0,0.44494504]
[1756261733357,1.44892777,111390.0,111380.0,0.44494504]
[1756261734249,1.44992777,111390.0,111380.0,0.04673504]
[1756261734745,0.59768777,111390.0,111380.0,0.06214504]
[1756261735150,1.45168777,111390.0,111380.0,0.16055504]
[1756261735346,1.45168777,111390.0,111380.0,0.10358504]
[1756261735547,1.45268777,111390.0,111380.0,0.13643504]
[1756261735753,1.45260777,111390.0,111380.0,0.16055504]
[1756261735951,1.45260777,111390.0,111380.0,0.12770504]
[1756261736152,1.45260777,111390.0,111380.0,0.10358504]
[1756261736648,1.45260777,111390.0,111380.0,0.16055504]
[1756261737154,1.46173145,111390.0,111380.0,0.16055504]
[1756261738257,0.97496059,111390.0,111380.0,0.16055504]
[1756261738457,1.46173145,111390.0,111380.0,0.16055504]
[1756261740355,0.03128159,111390.0,111380.0,0.61112214]
[1756261740654,1.46113145,111390.0,111380.0,0.61112214]
[1756261740858,1.46113145,111390.0,111380.0,0.52135504]
[1756261741356,1.46113145,111390.0,111380.0,0.46438504]
[1756261741661,1.46013145,111390.0,111380.0,0.46438504]
[1756261742160,1.46013145,111390.0,111380.0,0.49723504]
[1756261742363,1.37033245,111390.0,111380.0,0.61112214]
[1756261742554,1.46009145,111390.0,111380.0,0.61112214]
[1756261742755,1.46109145,111390.0,111380.0,0.61112214]
[1756261742962,1.46109145,111390.0,111380.0,0.52135504]
[1756261743462,1.46109145,111390.0,111380.0,0.61112214]
[1756261743855,1.46109145,111390.0,111380.0,0.52135504]
[1756261746365,0.97408059,111390.0,111380.0,0.61112214]
[1756261747266,0.97408059,111390.0,111380.0,0.52135504]
[1756261747561,0.97308059,111390.0,111380.0,0.52135504]
[1756261748067,0.12004059,111390.0,111380.0,0.61112214]
[1756261748269,1.45925145,111390.0,111380.0,0.61112214]
[1756261748769,1.45825145,111390.0,111380.0,0.61112214]
[1756261749067,1.45925145,111390.0,111380.0,0.61112214]
[1756261749367,1.45925145,111390.0,111380.0,0.52135504]
[1756261749564,1.46025145,111390.0,111380.0,0.52135504]
[1756261751069,0.97348059,111390.0,111380.0,0.52135504]
[1756261751369,1.46025145,111390.0,111380.0,0.52135504]
[1756261752067,1.46025145,111390.0,111380.0,0.12770504]
[1756261752266,1.46025145,111390.0,111380.0,0.16098504]
[1756261752460,1.46025145,111390.0,111380.0,0.52178504]
[1756261753169,0.60781145,111390.0,111380.0,0.52178504]
[1756261753369,1.45901145,111390.0,111380.0,0.52178504]
[1756261753670,0.97224059,111390.0,111380.0,0.61155214]
[1756261753869,0.12104059,111390.0,111380.0,0.86155214]
[1756261754061,0.97224059,111390.0,111380.0,0.86155214]
[1756261755070,1.45901145,111390.0,111380.0,0.86155214]
[1756261755282,0.12104059,111390.0,111380.0,0.86155214]
[1756261755571,0.97224059,111390.0,111380.0,0.86155214]
[1756261755769,1.45901145,111390.0,111380.0,0.86155214]
[1756261756069,1.45701145,111390.0,111380.0,0.86155214]
[1756261756874,1.45801145,111390.0,111380.0,0.86155214]
[1756261757067,0.60681145,111390.0,111380.0,0.86155214]
[1756261757262,0.001,111390.0,111380.0,1.348323]
[1756261757772,0.001,111390.0,111380.0,0.86155214]
[1756261757971,0.002,111390.0,111380.0,1.348323]
[1756261758666,0.001,111390.0,111380.0,1.348323]
[1756261758970,0.001,111390.0,111380.0,1.349323]
[1756261759170,0.08197889,111400.0,111390.0,0.089759]
[1756261759370,0.85116,111400.0,111390.0,1.08003986]
[1756261759768,0.0897479,111410.0,111400.0,0.2324609]
[1756261759964,0.9409079,111410.0,111400.0,0.5932609]
[1756261760575,0.10933779,111420.0,111410.0,0.2324529]
[1756261760764,0.10933779,111420.0,111410.0,0.5932529]
[1756261760969,0.96049779,111420.0,111410.0,0.5932529]
[1756261761468,0.9696669,111420.0,111410.0,0.5932529]
[1756261762477,1.46043776,111420.0,111410.0,0.5932529]
[1756261762969,1.45843776,111420.0,111410.0,0.5942529]
[1756261763367,1.53016636,111420.0,111410.0,0.5942529]
[1756261764086,1.53016636,111420.0,111410.0,0.50451]
[1756261764873,1.52916636,111420.0,111410.0,0.50351]
[1756261765974,1.53016636,111420.0,111410.0,0.50351]
[1756261767273,1.53016636,111420.0,111410.0,0.47023]
[1756261767578,1.53016636,111420.0,111410.0,0.38917]
[1756261768377,0.0897427,111410.0,111400.0,0.42313428]
[1756261768572,0.57651356,111410.0,111400.0,0.42313428]
[1756261768783,0.57651356,111410.0,111400.0,0.47798428]
[1756261769282,0.57651356,111410.0,111400.0,0.44470428]
[1756261769875,0.57651356,111410.0,111400.0,0.47798428]
[1756261770082,0.57651356,111410.0,111400.0,0.40754428]
[1756261771180,0.57651356,111410.0,111400.0,0.04674428]
[1756261772080,0.82651356,111410.0,111400.0,0.04674428]
[1756261772276,0.82851356,111410.0,111400.0,0.01837428]
[1756261772481,0.1094031,111400.0,111390.0,0.40476]
[1756261772674,1.44705396,111400.0,111390.0,0.40476]
[1756261773676,1.44705396,111400.0,111390.0,0.42633]
[1756261774483,1.44805396,111400.0,111390.0,0.45961]
[1756261774885,1.44905396,111400.0,111390.0,0.48353]
[1756261775574,1.44905396,111400.0,111390.0,0.50351]
[1756261775775,1.42936176,111400.0,111390.0,0.50351]
[1756261776484,0.85284,111400.0,111390.0,0.50351]
[1756261776684,1.33961086,111400.0,111390.0,0.50351]
[1756261777086,1.42936176,111400.0,111390.0,0.50351]
[1756261777583,1.42936176,111400.0,111390.0,0.40476]
[1756261777788,1.42936176,111400.0,111390.0,0.06726]
[1756261777978,1.79016176,111400.0,111390.0,0.12367]
[1756261778382,1.79016176,111400.0,111390.0,0.04396]
[1756261779986,1.79016176,111400.0,111390.0,0.02837]
[1756261781386,2.52693262,111400.0,111390.0,0.02837]
[1756261781585,0.089759,111390.0,111380.0,0.40692504]
[1756261781785,0.57652986,111390.0,111380.0,0.42241504]
[1756261781989,0.57652986,111390.0,111380.0,0.44571504]
[1756261782182,0.57652986,111390.0,111380.0,0.46472504]
[1756261782788,0.57652986,111390.0,111380.0,0.52113504]
[1756261783391,0.089759,111390.0,111380.0,0.52113504]
[1756261783579,0.59665306,111390.0,111380.0,0.40692504]
[1756261783784,0.089767,111380.0,111370.0,0.16024202]
[1756261784088,1.42773786,111380.0,111370.0,0.52104202]
[1756261785488,1.42973786,111380.0,111370.0,0.46463202]
[1756261785789,1.42973786,111380.0,111370.0,0.44562202]
[1756261785989,0.10969546,111370.0,111360.0,0.40429]
[1756261786190,0.59646632,111370.0,111360.0,0.40429]
[1756261786892,0.59646632,111370.0,111360.0,0.42759]
[1756261787092,0.59646632,111370.0,111360.0,0.40429]
[1756261789389,0.59646632,111370.0,111360.0,0.42759]
[1756261789592,0.59646632,111370.0,111360.0,0.46114]
[1756261789786,1.44942632,111370.0,111360.0,0.46114]
[1756261789987,1.44942632,111370.0,111360.0,0.50301]
[1756261790294,0.10969546,111370.0,111360.0,0.50301]
[1756261790490,1.44942632,111370.0,111360.0,0.50301]
[1756261793497,0.59646632,111370.0,111360.0,0.50301]
[1756261793683,1.44898632,111370.0,111360.0,0.50301]
[1756261796693,0.96221546,111370.0,111360.0,0.50301]
[1756261796996,1.44794632,111370.0,111360.0,0.75301]
[1756261797296,0.10969546,111370.0,111360.0,0.8427932]
[1756261797495,1.44746632,111370.0,111360.0,0.8427932]
[1756261797693,0.96065546,111370.0,111360.0,0.8427932]
[1756261799003,0.96065546,111370.0,111360.0,0.75301]
[1756261799204,1.44742632,111370.0,111360.0,0.75301]
[1756261800701,0.01992036,111370.0,111360.0,0.8427932]
[1756261800907,0.01992036,111370.0,111360.0,1.32956406]
[1756261801198,0.1098868,111390.0,111380.0,0.14221]
[1756261801405,1.0010368,111390.0,111380.0,0.86381]
[1756261801814,1.0010368,111390.0,111380.0,1.70854228]
[1756261801815,0.9608822,111390.0,111380.0,1.70854228]
[1756261804216,0.9608822,111390.0,111380.0,1.22177142]
[1756261804415,0.9788422,111390.0,111380.0,1.13200432]
[1756261804615,1.48780306,111390.0,111380.0,0.88200432]
[1756261805012,1.48780306,111390.0,111380.0,0.84845432]
[1756261805204,1.73780306,111390.0,111380.0,0.10399432]
[1756261805408,1.73780306,111390.0,111380.0,0.06168432]
[1756261805812,1.48780306,111390.0,111380.0,0.06168432]
[1756261806210,1.48880306,111390.0,111380.0,0.06168432]
[1756261807218,1.48980306,111390.0,111380.0,0.06168432]
[1756261807912,1.48980306,111390.0,111380.0,0.04619432]
[1756261808118,1.73980306,111390.0,111380.0,0.01819432]
[1756261808411,2.10060306,111390.0,111380.0,0.01819432]
[1756261809211,2.10060306,111390.0,111380.0,0.00023432]
[1756261809615,2.10060306,111390.0,111360.0,0.3608]
[1756261809616,0.0897752,111370.0,111360.0,0.3608]
[1756261809822,1.42742606,111370.0,111360.0,0.42597]
[1756261810221,1.42742606,111370.0,111360.0,0.45861]
[1756261810416,0.9406552,111370.0,111360.0,0.50191]
[1756261810621,1.42742606,111370.0,111360.0,0.50191]
[1756261810817,0.9406552,111370.0,111360.0,0.50191]
[1756261811022,1.42742606,111370.0,111360.0,0.50191]
[1756261811923,1.42742606,111370.0,111360.0,0.50291]
[1756261812122,1.42742606,111370.0,111360.0,0.50491]
[1756261813825,1.42742606,111370.0,111360.0,0.5946932]
[1756261814125,1.42742606,111370.0,111360.0,0.5926932]
[1756261814427,1.42742606,111370.0,111360.0,0.5916932]
[1756261814820,1.42742606,111370.0,111360.0,0.50191]
[1756261815525,0.9406552,111370.0,111360.0,0.50191]
[1756261815727,1.42742606,111370.0,111360.0,0.50191]
[1756261816420,0.9406552,111370.0,111360.0,0.50191]
[1756261816613,1.42742606,111370.0,111360.0,0.50191]
[1756261818024,0.0897752,111370.0,111360.0,0.8416932]
[1756261818327,0.9406552,111370.0,111360.0,1.32846406]
[1756261819329,0.9406552,111370.0,111360.0,0.8416932]
[1756261819526,0.9406552,111370.0,111360.0,1.32846406]
[1756261819833,0.9406552,111370.0,111360.0,0.8416932]
[1756261820126,1.42742606,111370.0,111360.0,0.71927]
[1756261820431,1.42742606,111370.0,111360.0,0.40458]
[1756261821134,1.42742606,111370.0,111360.0,0.42597]
[1756261821325,0.9406552,111370.0,111360.0,0.50191]
[1756261821830,1.42742606,111370.0,111360.0,0.50191]
[1756261822233,0.57654606,111370.0,111360.0,0.5916933]
[1756261822435,0.9406152,111370.0,111360.0,0.5916933]
[1756261823234,0.9406152,111370.0,111360.0,0.8416933]
[1756261828933,0.0897752,111370.0,111360.0,0.8416933]
[1756261829233,0.9405752,111370.0,111360.0,1.32846416]
[1756261829437,0.9405752,111370.0,111360.0,0.8416933]
[1756261829834,0.0897705,111380.0,111370.0,0.0897752]
[1756261830039,0.9405305,111380.0,111370.0,1.07845606]
[1756261830734,0.0897705,111380.0,111370.0,1.07845606]
[1756261830940,0.9606075,111390.0,111380.0,0.2308772]
[1756261831236,0.9606075,111390.0,111380.0,0.5916772]
[1756261833438,0.9616075,111390.0,111380.0,0.5916772]
[1756261833634,0.0221232,111390.0,111380.0,1.07844806]
[1756261833839,0.8718032,111390.0,111380.0,1.07844806]
[1756261834644,0.9615623,111390.0,111380.0,1.07844806]
[1756261835045,0.9605623,111390.0,111380.0,1.07844806]
[1756261837844,0.9403963,111400.0,111390.0,0.2322491]
[1756261838144,0.9403963,111400.0,111390.0,0.61108897]
[1756261840843,0.9413963,111400.0,111390.0,0.61108897]
[1756261841445,0.9403963,111400.0,111390.0,0.61108897]
[1756261841645,0.0897563,111400.0,111390.0,0.61108897]
[1756261841846,0.9401963,111400.0,111390.0,0.61108897]
[1756261842350,0.9401963,111400.0,111390.0,1.09785983]
[1756261842550,0.9401963,111400.0,111390.0,0.52132987]
[1756261842746,1.42696716,111400.0,111390.0,0.44541987]
[1756261842951,1.42696716,111400.0,111390.0,0.42386987]
[1756261843652,1.42696716,111400.0,111390.0,0.50300987]
[1756261843949,1.42796716,111400.0,111390.0,0.47813987]
[1756261844150,1.42896716,111400.0,111390.0,0.52132987]
[1756261845549,0.9421963,111400.0,111390.0,0.52132987]
[1756261845739,1.42896716,111400.0,111390.0,0.52132987]
[1756261846453,1.42896716,111400.0,111390.0,0.49645987]
[1756261846939,1.42896716,111400.0,111390.0,0.52132987]
[1756261848051,0.9421963,111400.0,111390.0,0.61108867]
[1756261848752,0.0917563,111400.0,111390.0,0.61108867]
[1756261849051,0.9420363,111400.0,111390.0,0.61108867]
[1756261849652,1.42880716,111400.0,111390.0,0.61108867]
[1756261850651,1.42680716,111400.0,111390.0,0.61108867]
[1756261851248,1.42780716,111400.0,111390.0,0.61108867]
[1756261851451,1.42880716,111400.0,111390.0,0.61108867]
[1756261852554,1.42876716,111400.0,111390.0,0.61108867]
[1756261852950,0.85224,111400.0,111390.0,1.09785953]
[1756261853150,0.002,111400.0,111390.0,1.34785953]
[1756261853757,0.8502,111410.0,111400.0,0.1296206]
[1756261854056,0.8502,111410.0,111400.0,1.07981146]
[1756261854855,0.9399426,111410.0,111400.0,1.07981146]
[1756261855055,0.9399426,111410.0,111400.0,0.5930406]
[1756261855754,0.65733168,111420.0,111410.0,0.2322331]
[1756261855944,0.17056082,111420.0,111410.0,0.61114422]
[1756261856148,0.08082042,111420.0,111410.0,1.09791508]
[1756261856459,0.9398951,111420.0,111410.0,1.09791508]
[1756261856760,0.92110621,111420.0,111410.0,1.09791508]
[1756261857352,0.92110621,111420.0,111410.0,0.61114422]
[1756261857559,0.92110621,111420.0,111410.0,1.09791508]
[1756261857754,0.73090172,111420.0,111410.0,1.09791508]
[1756261857959,0.82063672,111420.0,111410.0,1.09991508]
[1756261858155,0.82063672,111420.0,111410.0,1.10091508]
[1756261858360,0.16068121,111420.0,111410.0,1.10091508]
[1756261859056,0.07094621,111420.0,111410.0,1.10091508]
[1756261859262,1.43731688,111430.0,111420.0,0.089735]
[1756261859457,0.95054602,111430.0,111420.0,0.593025]
[1756261861366,1.02075379,111430.0,111420.0,0.593025]
[1756261861591,1.02067379,111430.0,111420.0,0.593025]
[1756261861954,0.07177016,111430.0,111420.0,1.32979586]
[1756261862254,0.07020777,111430.0,111420.0,1.32979586]
[1756261862451,0.9397615,111440.0,111430.0,0.1640936]
[1756261862652,0.9397615,111440.0,111430.0,1.09826446]
[1756261862851,0.9397615,111440.0,111430.0,0.6114936]
[1756261863762,1.42653236,111440.0,111430.0,0.4243072]
[1756261864060,0.9397615,111440.0,111430.0,0.5217672]
[1756261864364,0.9397615,111440.0,111430.0,0.6114935]
[1756261864654,0.85930195,111440.0,111430.0,1.09826436]
[1756261864860,0.85004,111440.0,111430.0,1.09826436]
[1756261865155,0.10965939,111450.0,111440.0,0.2322083]
[1756261865365,1.01263343,111450.0,111440.0,0.5930083]
[1756261866662,1.02178636,111450.0,111440.0,0.5930083]
[1756261867360,1.02278636,111450.0,111440.0,0.5930083]
[1756261868059,0.93307096,111450.0,111440.0,0.5930083]
[1756261868261,0.93307096,111450.0,111440.0,1.07977916]
[1756261868760,0.08311096,111450.0,111440.0,1.07977916]
[1756261869150,0.07395803,111450.0,111440.0,1.07977916]
[1756261870360,0.07295803,111450.0,111440.0,1.07977916]
[1756261870559,0.9396272,111460.0,111450.0,0.0897102]
[1756261870749,0.9396272,111460.0,111450.0,1.09775867]
[1756261871155,0.94853992,111460.0,111450.0,1.09775867]
[1756261871957,0.94853992,111460.0,111450.0,0.61098781]
[1756261873059,0.77356085,111460.0,111450.0,0.61098781]
[1756261873358,1.35003671,111460.0,111450.0,0.52127761]
[1756261873564,1.35003671,111460.0,111450.0,0.42192761]
[1756261874062,1.35003671,111460.0,111450.0,0.42292761]
[1756261874665,1.42283032,111460.0,111450.0,0.40755761]
[1756261875064,1.42283032,111460.0,111450.0,0.40655761]
[1756261876063,1.67539225,111460.0,111450.0,0.37904761]
[1756261876266,2.03619225,111460.0,111450.0,0.01824761]
[1756261877768,2.03619225,111460.0,111450.0,0.04575761]
[1756261877970,2.03619225,111460.0,111450.0,0.01824761]
[1756261882172,2.03619225,111460.0,111450.0,0.04575761]
[1756261882469,2.12126412,111460.0,111450.0,0.04575761]
[1756261883173,2.12126412,111460.0,111450.0,0.01824761]
[1756261885676,2.12126412,111460.0,111450.0,0.01324761]
[1756261894077,2.12126412,111460.0,111450.0,0.04075761]
[1756261894283,1.27154412,111460.0,111450.0,0.04075761]
[1756261894581,2.12118412,111460.0,111450.0,0.04075761]
[1756261895178,1.27154412,111460.0,111450.0,0.04075761]
[1756261895389,2.12118412,111460.0,111450.0,0.12161761]
[1756261895593,2.12118412,111460.0,111450.0,0.15547761]
[1756261896195,1.63441326,111460.0,111450.0,0.15547761]
[1756261896495,2.12118412,111460.0,111450.0,0.15547761]
[1756261897486,2.12118412,111460.0,111450.0,0.05612761]
[1756261897691,2.12118412,111460.0,111450.0,0.04075761]
[1756261900598,1.27154412,111460.0,111450.0,0.04075761]
[1756261900799,2.12110412,111460.0,111450.0,0.05646761]
[1756261901098,2.12110412,111460.0,111450.0,0.07947761]
[1756261901598,2.12110412,111460.0,111450.0,0.11135761]
[1756261902885,2.12110412,111460.0,111450.0,0.13450761]
[1756261903500,2.12110412,111460.0,111450.0,0.07947761]
[1756261904200,2.12110412,111460.0,111450.0,0.11135761]
[1756261904503,1.87110412,111460.0,111450.0,0.15427761]
[1756261905796,1.87110412,111460.0,111450.0,0.13112761]
[1756261906001,1.87110412,111460.0,111450.0,0.09924761]
[1756261907292,1.87110412,111460.0,111450.0,0.04075761]
[1756261907902,1.87110412,111460.0,111450.0,0.05646761]
[1756261908801,1.87110412,111460.0,111450.0,0.04075761]
[1756261910105,1.87110412,111460.0,111450.0,0.05646761]
[1756261910905,1.87110412,111460.0,111450.0,0.04075761]
[1756261912302,1.68965583,111460.0,111450.0,0.05646761]
[1756261912806,1.77033157,111460.0,111450.0,0.07947761]
[1756261913108,1.01047657,111460.0,111450.0,0.07947761]
[1756261913301,1.85983657,111460.0,111450.0,0.15427761]
[1756261914001,0.17038074,111460.0,111450.0,0.76507761]
[1756261914201,1.01970074,111460.0,111450.0,0.76507761]
[1756261914606,1.5064716,111460.0,111450.0,0.76507761]
[1756261915401,0.6571516,111460.0,111450.0,0.85478791]
[1756261915598,1.02122268,111460.0,111450.0,0.85478791]
[1756261916806,1.02122268,111460.0,111450.0,0.85578791]
[1756261917999,1.50799354,111460.0,111450.0,0.76607761]
[1756261918404,1.50799354,111460.0,111450.0,0.76707761]
[1756261919412,1.02122268,111460.0,111450.0,0.76707761]
[1756261919599,1.50799354,111460.0,111450.0,0.76707761]
[1756261920100,1.50799354,111460.0,111450.0,0.73519761]
[1756261920307,1.50799354,111460.0,111450.0,0.08147761]
[1756261920808,1.50799354,111460.0,111450.0,0.15627761]
[1756261921497,0.65871354,111460.0,111450.0,0.51607761]
[1756261921702,1.50783354,111460.0,111450.0,0.51607761]
[1756261921909,0.65871354,111460.0,111450.0,0.51607761]
[1756261922109,1.50779354,111460.0,111450.0,0.51607761]
[1756261922509,0.65871354,111460.0,111450.0,0.51607761]
[1756261922714,1.50779354,111460.0,111450.0,0.51607761]
[1756261923204,0.66071354,111460.0,111450.0,0.51507761]
[1756261923505,1.50975354,111460.0,111450.0,0.51507761]
[1756261924312,1.02298268,111460.0,111450.0,0.51507761]
[1756261924707,1.50975354,111460.0,111450.0,0.51507761]
[1756261925012,1.50775354,111460.0,111450.0,0.51507761]
[1756261925212,1.02198268,111460.0,111450.0,0.51507761]
[1756261925712,1.50875354,111460.0,111450.0,0.51507761]
[1756261925908,1.50867354,111460.0,111450.0,0.51507761]
[1756261929214,1.02190268,111460.0,111450.0,0.51507761]
[1756261929417,1.50867354,111460.0,111450.0,0.51507761]
[1756261931418,1.31771686,111460.0,111450.0,0.51507761]
[1756261932119,1.40742186,111460.0,111450.0,0.51507761]
[1756261932506,1.40742186,111460.0,111450.0,0.60478801]
[1756261932910,1.41633571,111460.0,111450.0,0.51507761]
[1756261933417,0.92956485,111460.0,111450.0,0.51507761]
[1756261933617,1.41633571,111460.0,111450.0,0.51507761]
[1756261934820,0.92956485,111460.0,111450.0,0.51507761]
[1756261935118,1.41633571,111460.0,111450.0,0.51507761]
[1756261935620,1.48631632,111460.0,111450.0,0.51507761]
[1756261936619,1.01727946,111460.0,111450.0,0.60478801]
[1756261937415,0.16859946,111460.0,111450.0,0.60478801]
[1756261937617,0.07889446,111460.0,111450.0,1.34155887]
[1756261937819,0.84864,111460.0,111450.0,1.34155887]
[1756261939021,0.84864,111460.0,111450.0,1.34255887]
[1756261940024,0.92141915,111460.0,111450.0,1.34255887]
[1756261940526,0.92141915,111460.0,111450.0,1.34355887]
[1756261940719,0.92141915,111460.0,111450.0,1.62355887]
[1756261940924,0.93032494,111460.0,111450.0,1.62355887]
[1756261941426,0.93032494,111460.0,111450.0,1.13678801]
[1756261941617,0.93032494,111460.0,111450.0,1.62355887]
[1756261942726,0.08168494,111460.0,111450.0,1.62355887]
[1756261942920,0.9381791,111470.0,111460.0,0.1285623]
[1756261943122,0.9381791,111470.0,111460.0,0.5948223]
[1756261943923,0.9381791,111470.0,111460.0,1.08159316]
[1756261944525,1.81596936,111480.0,111470.0,0.2340143]
[1756261944823,2.73729645,111480.0,111470.0,1.09961159]
[1756261945124,2.73729645,111480.0,111470.0,0.61284073]
[1756261946626,1.03077645,111480.0,111470.0,0.61284073]
[1756261946928,1.03077645,111480.0,111470.0,1.09961159]
[1756261947726,0.85495989,111480.0,111470.0,1.09961159]
[1756261948026,0.78009182,111480.0,111470.0,1.09961159]
[1756261949312,0.78009182,111480.0,111470.0,0.61284073]
[1756261950927,2.1561777,111520.0,111510.0,0.02923]
[1756261951122,0.0896701,111500.0,111490.0,0.50512]
[1756261951320,1.42452096,111500.0,111490.0,0.46539616]
[1756261951521,1.42452096,111500.0,111490.0,0.55507436]
[1756261951829,1.42452096,111500.0,111490.0,0.58979436]
[1756261952018,0.94662539,111500.0,111490.0,0.61274436]
[1756261952214,1.43339625,111500.0,111490.0,0.61274436]
[1756261952418,1.50497295,111500.0,111490.0,0.61274436]
[1756261952822,1.01820209,111500.0,111490.0,0.61274436]
[1756261953024,1.50497295,111500.0,111490.0,0.61274436]
[1756261953327,1.50497295,111500.0,111490.0,0.57802436]
[1756261953621,1.50497295,111500.0,111490.0,0.48834616]
[1756261954020,1.50497295,111500.0,111490.0,0.46539616]
[1756261954223,1.50497295,111500.0,111490.0,0.10459616]
[1756261955026,1.50597295,111500.0,111490.0,0.10459616]
[1756261955628,1.50597295,111500.0,111490.0,0.13931616]
[1756261955829,1.50597295,111500.0,111490.0,0.16226616]
[1756261956328,1.01920209,111500.0,111490.0,0.16226616]
[1756261956530,1.50597295,111500.0,111490.0,0.52306616]
[1756261957724,1.50597295,111500.0,111490.0,0.46539616]
[1756261958231,1.50497295,111500.0,111490.0,0.52294616]
[1756261958425,1.50497295,111500.0,111490.0,0.16214616]
[1756261958723,1.50497295,111500.0,111490.0,0.52294616]
[1756261959036,1.50461295,111500.0,111490.0,0.61262436]
[1756261959819,1.50561295,111500.0,111490.0,0.61262436]
[1756261960236,0.92913199,111500.0,111490.0,1.09939522]
[1756261960435,0.92813199,111500.0,111490.0,1.09939522]
[1756261960731,0.92805199,111500.0,111490.0,1.09939522]
[1756261961129,0.92805199,111500.0,111490.0,0.61262436]
[1756261961326,0.92805199,111500.0,111490.0,1.09939522]
[1756261961528,1.01772209,111500.0,111490.0,1.09939522]
[1756261962833,1.01772209,111500.0,111490.0,1.10139522]
[1756261963026,0.92805199,111500.0,111490.0,1.10139522]
[1756261963730,0.92805199,111500.0,111490.0,0.61462436]
[1756261963936,1.01772209,111500.0,111490.0,1.10139522]
[1756261964235,1.01772209,111500.0,111490.0,0.61462436]
[1756261964733,1.01772209,111500.0,111490.0,0.58159436]
[1756261964939,1.01772209,111500.0,111490.0,0.52494616]
[1756261965432,1.01772209,111500.0,111490.0,0.61462436]
[1756261965930,1.50449295,111500.0,111490.0,0.61462436]
[1756261966133,1.50449295,111500.0,111490.0,0.49191616]
[1756261966331,1.50449295,111500.0,111490.0,0.61462436]
[1756261966925,0.65689295,111500.0,111490.0,0.61462436]
[1756261967125,0.65689295,111500.0,111490.0,1.10139522]
[1756261967325,1.01740209,111500.0,111490.0,1.10139522]
[1756261967530,0.92773199,111500.0,111490.0,1.10139522]
[1756261967929,0.92773199,111500.0,111490.0,1.35139522]
[1756261968327,0.92773199,111500.0,111490.0,0.86462436]
[1756261968527,0.92773199,111500.0,111490.0,1.35139522]
[1756261971931,1.01740229,111500.0,111490.0,1.35139522]
[1756261972540,1.7953742,111520.0,111510.0,0.14225]
[1756261972738,2.6424542,111520.0,111510.0,0.52127448]
[1756261973033,2.6424542,111520.0,111510.0,0.61093678]
[1756261973631,2.6434542,111520.0,111510.0,0.61093678]
[1756261974239,3.13022506,111520.0,111510.0,0.61093678]
[1756261974535,3.38022506,111520.0,111510.0,0.46372448]
[1756261974939,3.39658027,111520.0,111510.0,0.46372448]
[1756261975136,2.90980941,111520.0,111510.0,0.52127448]
[1756261975336,2.54950027,111520.0,111510.0,0.57790678]
[1756261975638,3.14646027,111520.0,111510.0,0.61093678]
[1756261975828,3.21660421,111520.0,111510.0,0.61093678]
[1756261978341,2.72983335,111520.0,111510.0,0.61093678]
[1756261978540,3.21660421,111520.0,111510.0,0.61093678]
[1756261979442,2.36964421,111520.0,111510.0,0.61093678]
[1756261979643,3.21644421,111520.0,111510.0,0.61093678]
[1756261980235,3.21644421,111520.0,111510.0,0.40765448]
[1756261980441,3.46800534,111520.0,111510.0,0.01822448]
[1756261980631,4.3155762,111520.0,111510.0,0.01822448]
[1756261982742,3.34203448,111520.0,111510.0,0.01822448]
[1756261982944,4.3155762,111520.0,111510.0,0.01822448]
[1756261984144,0.0896623,111510.0,111490.0,0.40737616]
[1756261984445,1.42304116,111500.0,111490.0,0.40761383]
[1756261984944,1.78384116,111500.0,111490.0,0.01846215]
[1756261985439,0.10978848,111490.0,111480.0,0.38943]
[1756261985647,0.0896864,111480.0,111470.0,0.40745643]
[1756261985846,1.42301726,111480.0,111470.0,0.04665643]
[1756261986147,1.42101726,111480.0,111470.0,0.04665643]
[1756261986342,0.0876864,111480.0,111470.0,0.16027643]
[1756261986646,1.41897726,111480.0,111470.0,0.52107643]
[1756261986846,0.9322064,111480.0,111470.0,0.61077083]
[1756261987047,0.9322064,111480.0,111470.0,0.61177083]
[1756261987547,0.9322064,111480.0,111470.0,0.61277083]
[1756261988537,0.9322864,111480.0,111470.0,0.61277083]
[1756261990846,1.41905726,111480.0,111470.0,0.52307643]
[1756261991747,1.41905726,111480.0,111470.0,0.49004643]
[1756261991947,1.41905726,111480.0,111470.0,0.40945643]
[1756261992147,1.41905726,111480.0,111470.0,0.52562643]
[1756261992540,1.41905726,111480.0,111470.0,0.52462643]
[1756261992745,1.42005726,111480.0,111470.0,0.52362643]
[1756261993050,1.42205726,111480.0,111470.0,0.52362643]
[1756261993247,0.9351664,111480.0,111470.0,0.61332093]
[1756261993454,0.9351264,111480.0,111470.0,0.61332093]
[1756261993947,0.9351264,111480.0,111470.0,0.52362643]
[1756261994145,1.42189726,111480.0,111470.0,0.52362643]
[1756261994653,0.57545726,111480.0,111470.0,0.61332093]
[1756261994855,0.84944,111480.0,111470.0,1.35009179]
[1756261995350,0.84944,111480.0,111470.0,0.86332093]
[1756261995546,0.84944,111480.0,111470.0,1.35009179]
[1756261996054,0.84844,111480.0,111470.0,1.35009179]
[1756261996754,0.95619278,111490.0,111480.0,0.2339364]
[1756261996950,0.10978848,111490.0,111480.0,1.08150726]
[1756261997157,0.95614848,111490.0,111480.0,1.08150726]
[1756261998952,0.95714848,111490.0,111480.0,1.08150726]
[1756261999161,0.95714848,111490.0,111480.0,0.99182086]
[1756261999359,0.95714848,111490.0,111480.0,0.50505]
[1756261999659,0.95614848,111490.0,111480.0,0.5947364]
[1756261999854,0.95614848,111490.0,111480.0,1.08150726]
[1756262000656,0.95714848,111490.0,111480.0,1.08150726]
[1756262000855,0.95814848,111490.0,111480.0,1.08150726]
[1756262002160,0.95714848,111490.0,111480.0,1.08150726]
[1756262002557,0.95614848,111490.0,111480.0,1.08150726]